Workbook

Sheet Vertical Curve Analysis
A1: VERTICAL CURVE | D1: 1
A2: CREST | C2: VPI = | D2: 900 | I2: Design Speed = | J2: 60 | K2: mph
D4: Length of | G4: Rate of
B5: VPC | C5: VPT | D5: Vertical | G5: Curvature | L5: FDM 11-10-5, Attachment 5.4, Category 1
B6: Station | C6: Station | D6: Curve (ft) | G6: (crest) | K6: 24" Object Height | L6: "K" Value | M6: 6" Object Height | N6: "K" Value | O6: Min. L=3V
B7: 600 | C7: 1200 | D7: =IF(OR(B7="",C7=""),"",ABS(C7-B7)) -> 600 | E7: = L | G7: K | K7: Minimum | L7: 151 | M7: Desirable Minimum | N7: 245 | O7: =J2*3 -> 180
G8: =D7/D13 -> 1500 | J8: Sight Distance (S) = | K8: 570 | M8: 570 | O8: YES
D9: Algebraic | H9: For a given "A" and 'L". What is "S" for this curve?
D10: Difference
B11: Grade 1 | C11: Grade2 | D11: in Grades | K11: S < L | M11: S < L
B12: (%) | C12: (%) | D12: (g2-g1) | J12: S = | K12: =(SQRT(G8))*46.45 -> 1799.000764 | L12: S = | M12: =(SQRT(G8))*36.46 -> 1412.089728
B13: 0 | C13: -0.4 | D13: =ABS(C13-B13) -> 0.4 | E13: = A
K14: S > L | M14: S > L
D15: K = L/A | J15: S = | K15: =(1079/D13)+(D7/2) -> 2997.5 | L15: S = | M15: =(665/D13)+(D7/2) -> 1962.5
A18: VERTICAL CURVE | D18: 2
A19: SAG | C19: VPI = | D19: 2200 | I19: Design Speed = | J19: 60 | K19: mph
D21: Length of | G21: Rate of | K21: FDM 11-10-5, Attachment 5.6, Category 1
B22: VPC | C22: VPT | D22: Vertical | G22: Curvature | L22: "K" Value | N22: "K" Value
B23: Station | C23: Station | D23: Curve (ft) | G23: (sag) | K23: Minimum | M23: Desirable
B24: 1900 | C24: 2500 | D24: =IF(OR(B24="",C24=""),"",ABS(C24-B24)) -> 600 | E24: = L | G24: K | K24: SSD (ft) | L24: 136 | M24: SSD (ft) | N24: 136
G25: =D24/D30 -> 1000 | J25: Sight Distance (S) = | K25: 570 | M25: 570
D26: Algebraic
D27: Difference
B28: Grade1 | C28: Grade2 | D28: in Grades | H28: For a given "A" and 'L". What is "S" for this curve?
B29: (%) | C29: (%) | D29: (g2-g1)
B30: -0.4 | C30: 0.2 | D30: =ABS(C30-B30) -> 0.6 | E30: = A
K31: S > L | M31: S < L
D32: K = L/A
B33: When "A" is 1.75% or less, S is not restricted for a "SAG" vertical curve | J33: S = | K33: =(D30*D24+400)/(2*D30-3.5) -> -330.4347826 | L33: S = | M33: =(3.5*D24+SQRT(12.25*D24^2+(1600*D30*D24)))/(2*D30) -> 3610.779407
A35: VERTICAL CURVE | D35: 3
A36: SAG | C36: VPI = | D36: 3800 | I36: Design Speed = | J36: 60 | K36: mph
D38: Length of | G38: Rate of | K38: FDM 11-10-5, Attachment 5.6, Category 1
B39: VPC | C39: VPT | D39: Vertical | G39: Curvature | L39: "K" Value | N39: "K" Value
B40: Station | C40: Station | D40: Curve (ft) | G40: (sag) | K40: Minimum | M40: Desirable
B41: 3500 | C41: 4100 | D41: =IF(OR(B41="",C41=""),"",ABS(C41-B41)) -> 600 | E41: = L | G41: K | K41: SSD (ft) | L41: 136 | M41: SSD (ft) | N41: 136
G42: =D41/D47 -> 2000 | J42: Sight Distance (S) = | K42: 570 | M42: 570
D43: Algebraic
D44: Difference
B45: Grade1 | C45: Grade2 | D45: in Grades | H45: For a given "A" and 'L". What is "S" for this curve?
B46: (%) | C46: (%) | D46: (g2-g1)
B47: 0.2 | C47: 0.5 | D47: =ABS(C47-B47) -> 0.3 | E47: = A
K48: S > L | M48: S < L
D49: K = L/A
B50: When "A" is 1.75% or less, S is not restricted for a "SAG" vertical curve | J50: S = | K50: =(D47*D41+400)/(2*D47-3.5) -> -200 | L50: S = | M50: =(3.5*D41+SQRT(12.25*D41^2+(1600*D47*D41)))/(2*D47) -> 7112.478374
A53: VERTICAL CURVE | D53: 4
A54: SAG | C54: VPI = | D54: 5000 | I54: Design Speed = | J54: 60 | K54: mph
D56: Length of | G56: Rate of | K56: FDM 11-10-5, Attachment 5.6, Category 1
B57: VPC | C57: VPT | D57: Vertical | G57: Curvature | L57: "K" Value | N57: "K" Value
B58: Station | C58: Station | D58: Curve (ft) | G58: (sag) | K58: Minimum | M58: Desirable
B59: 4700 | C59: 5300 | D59: =IF(OR(B59="",C59=""),"",ABS(C59-B59)) -> 600 | E59: = L | G59: K | K59: SSD (ft) | L59: 136 | M59: SSD (ft) | N59: 136
G60: =D59/D65 -> 2000 | J60: Sight Distance (S) = | K60: 570 | M60: 570
D61: Algebraic
D62: Difference
B63: Grade1 | C63: Grade2 | D63: in Grades | H63: For a given "A" and 'L". What is "S" for this curve?
B64: (%) | C64: (%) | D64: (g2-g1)
B65: 0.5 | C65: 0.8 | D65: =ABS(C65-B65) -> 0.3 | E65: = A
K66: S > L | M66: S < L
D67: K = L/A
B68: When "A" is 1.75% or less, S is not restricted for a "SAG" vertical curve | J68: S = | K68: =(D65*D59+400)/(2*D65-3.5) -> -200 | L68: S = | M68: =(3.5*D59+SQRT(12.25*D59^2+(1600*D65*D59)))/(2*D65) -> 7112.478374
A71: VERTICAL CURVE | D71: 5
A72: CREST | C72: VPI = | D72: 6800 | I72: Design Speed = | J72: 60 | K72: mph
D74: Length of | G74: Rate of
B75: VPC | C75: VPT | D75: Vertical | G75: Curvature | L75: FDM 11-10-5, Attachment 5.4, Category 1
B76: Station | C76: Station | D76: Curve (ft) | G76: (crest) | K76: 24" Object Height | L76: "K" Value | M76: 6" Object Height | N76: "K" Value | O76: Min. L=3V
B77: 6400 | C77: 7200 | D77: =IF(OR(B77="",C77=""),"",ABS(C77-B77)) -> 800 | E77: = L | G77: K | K77: Minimum | L77: 151 | M77: Desirable Minimum | N77: 245 | O77: =J72*3 -> 180
G78: =D77/D83 -> 571.4285714 | J78: Sight Distance (S) = | K78: 570 | M78: 570 | O78: YES
D79: Algebraic | H79: For a given "A" and 'L". What is "S" for this curve?
D80: Difference
B81: Grade 1 | C81: Grade2 | D81: in Grades | K81: S < L | M81: S < L
B82: (%) | C82: (%) | D82: (g2-g1) | J82: S = | K82: =(SQRT(G78))*46.45 -> 1110.367378 | L82: S = | M82: =(SQRT(G78))*36.46 -> 871.5607019
B83: 0.8 | C83: -0.6 | D83: =ABS(C83-B83) -> 1.4 | E83: = A
K84: S > L | M84: S > L
D85: K = L/A | J85: S = | K85: =(1079/D83)+(D77/2) -> 1170.714286 | L85: S = | M85: =(665/D83)+(D77/2) -> 875
A88: VERTICAL CURVE | D88: 6
A89: SAG | C89: VPI = | D89: 8650 | I89: Design Speed = | J89: 60 | K89: mph
D91: Length of | G91: Rate of | K91: FDM 11-10-5, Attachment 5.6, Category 1
B92: VPC | C92: VPT | D92: Vertical | G92: Curvature | L92: "K" Value | N92: "K" Value
B93: Station | C93: Station | D93: Curve (ft) | G93: (sag) | K93: Minimum | M93: Desirable
B94: 8250 | C94: 9050 | D94: =IF(OR(B94="",C94=""),"",ABS(C94-B94)) -> 800 | E94: = L | G94: K | K94: SSD (ft) | L94: 136 | M94: SSD (ft) | N94: 136
G95: =D94/D100 -> 800 | J95: Sight Distance (S) = | K95: 570 | M95: 570
D96: Algebraic
D97: Difference
B98: Grade1 | C98: Grade2 | D98: in Grades | H98: For a given "A" and 'L". What is "S" for this curve?
B99: (%) | C99: (%) | D99: (g2-g1)
B100: -0.6 | C100: 0.4 | D100: =ABS(C100-B100) -> 1 | E100: = A
K101: S > L | M101: S < L
D102: K = L/A
B103: When "A" is 1.75% or less, S is not restricted for a "SAG" vertical curve | J103: S = | K103: =(D100*D94+400)/(2*D100-3.5) -> -800 | L103: S = | M103: =(3.5*D94+SQRT(12.25*D94^2+(1600*D100*D94)))/(2*D100) -> 2909.966887
A106: VERTICAL CURVE | D106: 7
A107: SAG | C107: VPI = | D107: 10400 | I107: Design Speed = | J107: 60 | K107: mph
D109: Length of | G109: Rate of | K109: FDM 11-10-5, Attachment 5.6, Category 1
B110: VPC | C110: VPT | D110: Vertical | G110: Curvature | L110: "K" Value | N110: "K" Value
B111: Station | C111: Station | D111: Curve (ft) | G111: (sag) | K111: Minimum | M111: Desirable
B112: 10200 | C112: 10600 | D112: =IF(OR(B112="",C112=""),"",ABS(C112-B112)) -> 400 | E112: = L | G112: K | K112: SSD (ft) | L112: 136 | M112: SSD (ft) | N112: 136
G113: =D112/D118 -> 1000 | J113: Sight Distance (S) = | K113: 570 | M113: 570
D114: Algebraic
D115: Difference
B116: Grade1 | C116: Grade2 | D116: in Grades | H116: For a given "A" and 'L". What is "S" for this curve?
B117: (%) | C117: (%) | D117: (g2-g1)
B118: 0.4 | C118: 0.8 | D118: =ABS(C118-B118) -> 0.4 | E118: = A
K119: S > L | M119: S < L
D120: K = L/A
B121: When "A" is 1.75% or less, S is not restricted for a "SAG" vertical curve | J121: S = | K121: =(D118*D112+400)/(2*D118-3.5) -> -207.4074074 | L121: S = | M121: =(3.5*D112+SQRT(12.25*D112^2+(1600*D118*D112)))/(2*D118) -> 3610.779407
A123: VERTICAL CURVE | D123: 8
A124: CREST | C124: VPI = | D124: 11250 | I124: Design Speed = | J124: 60 | K124: mph
D126: Length of | G126: Rate of
B127: VPC | C127: VPT | D127: Vertical | G127: Curvature | L127: FDM 11-10-5, Attachment 5.4, Category 1
B128: Station | C128: Station | D128: Curve (ft) | G128: (crest) | K128: 24" Object Height | L128: "K" Value | M128: 6" Object Height | N128: "K" Value | O128: Min. L=3V
B129: 10950 | C129: 11550 | D129: =IF(OR(B129="",C129=""),"",ABS(C129-B129)) -> 600 | E129: = L | G129: K | K129: Minimum | L129: 151 | M129: Desirable Minimum | N129: 245 | O129: =J124*3 -> 180
G130: =D129/D135 -> 428.5714286 | J130: Sight Distance (S) = | K130: 570 | M130: 570 | O130: YES
D131: Algebraic | H131: For a given "A" and 'L". What is "S" for this curve?
D132: Difference
B133: Grade 1 | C133: Grade2 | D133: in Grades | K133: S < L | M133: S < L
B134: (%) | C134: (%) | D134: (g2-g1) | J134: S = | K134: =(SQRT(G130))*46.45 -> 961.6063569 | L134: S = | M134: =(SQRT(G130))*36.46 -> 754.7937088
B135: 0.8 | C135: -0.6 | D135: =ABS(C135-B135) -> 1.4 | E135: = A
K136: S > L | M136: S > L
D137: K = L/A | J137: S = | K137: =(1079/D135)+(D129/2) -> 1070.714286 | L137: S = | M137: =(665/D135)+(D129/2) -> 775
A139: VERTICAL CURVE | D139: 9
A140: SAG | C140: VPI = | D140: 12033.3 | I140: Design Speed = | J140: 60 | K140: mph
D142: Length of | G142: Rate of | K142: FDM 11-10-5, Attachment 5.6, Category 1
B143: VPC | C143: VPT | D143: Vertical | G143: Curvature | L143: "K" Value | N143: "K" Value
B144: Station | C144: Station | D144: Curve (ft) | G144: (sag) | K144: Minimum | M144: Desirable
B145: 11833.3 | C145: 12233.3 | D145: =IF(OR(B145="",C145=""),"",ABS(C145-B145)) -> 400 | E145: = L | G145: K | K145: SSD (ft) | L145: 136 | M145: SSD (ft) | N145: 136
G146: =D145/D151 -> 666.6666667 | J146: Sight Distance (S) = | K146: 570 | M146: 570
D147: Algebraic
D148: Difference
B149: Grade1 | C149: Grade2 | D149: in Grades | H149: For a given "A" and 'L". What is "S" for this curve?
B150: (%) | C150: (%) | D150: (g2-g1)
B151: -0.6 | C151: 0 | D151: =ABS(C151-B151) -> 0.6 | E151: = A
K152: S > L | M152: S < L
D153: K = L/A
B154: When "A" is 1.75% or less, S is not restricted for a "SAG" vertical curve | J154: S = | K154: =(D151*D145+400)/(2*D151-3.5) -> -278.2608696 | L154: S = | M154: =(3.5*D145+SQRT(12.25*D145^2+(1600*D151*D145)))/(2*D151) -> 2442.510614
A156: VERTICAL CURVE | D156: 10
A157: SAG | C157: VPI = | D157: 14250 | I157: Design Speed = | J157: 60 | K157: mph
D159: Length of | G159: Rate of | K159: FDM 11-10-5, Attachment 5.6, Category 1
B160: VPC | C160: VPT | D160: Vertical | G160: Curvature | L160: "K" Value | N160: "K" Value
B161: Station | C161: Station | D161: Curve (ft) | G161: (sag) | K161: Minimum | M161: Desirable
B162: 13950 | C162: 14550 | D162: =IF(OR(B162="",C162=""),"",ABS(C162-B162)) -> 600 | E162: = L | G162: K | K162: SSD (ft) | L162: 136 | M162: SSD (ft) | N162: 136
G163: =D162/D168 -> 600 | J163: Sight Distance (S) = | K163: 570 | M163: 570
D164: Algebraic
D165: Difference
B166: Grade1 | C166: Grade2 | D166: in Grades | H166: For a given "A" and 'L". What is "S" for this curve?
B167: (%) | C167: (%) | D167: (g2-g1)
B168: 0 | C168: 1 | D168: =ABS(C168-B168) -> 1 | E168: = A
K169: S > L | M169: S < L
D170: K = L/A
B171: When "A" is 1.75% or less, S is not restricted for a "SAG" vertical curve | J171: S = | K171: =(D168*D162+400)/(2*D168-3.5) -> -666.6666667 | L171: S = | M171: =(3.5*D162+SQRT(12.25*D162^2+(1600*D168*D162)))/(2*D168) -> 2208.663023
A174: VERTICAL CURVE | D174: 11
A175: CREST | C175: VPI = | D175: 16100 | I175: Design Speed = | J175: 60 | K175: mph
D177: Length of | G177: Rate of
B178: VPC | C178: VPT | D178: Vertical | G178: Curvature | L178: FDM 11-10-5, Attachment 5.4, Category 1
B179: Station | C179: Station | D179: Curve (ft) | G179: (crest) | K179: 24" Object Height | L179: "K" Value | M179: 6" Object Height | N179: "K" Value | O179: Min. L=3V
B180: 15800 | C180: 16400 | D180: =IF(OR(B180="",C180=""),"",ABS(C180-B180)) -> 600 | E180: = L | G180: K | K180: Minimum | L180: 151 | M180: Desirable Minimum | N180: 245 | O180: =J175*3 -> 180
G181: =D180/D186 -> 857.1428571 | J181: Sight Distance (S) = | K181: 570 | M181: 570 | O181: YES
D182: Algebraic | H182: For a given "A" and 'L". What is "S" for this curve?
D183: Difference
B184: Grade 1 | C184: Grade2 | D184: in Grades | K184: S < L | M184: S < L
B185: (%) | C185: (%) | D185: (g2-g1) | J185: S = | K185: =(SQRT(G181))*46.45 -> 1359.916752 | L185: S = | M185: =(SQRT(G181))*36.46 -> 1067.4395
B186: 1 | C186: 0.3 | D186: =ABS(C186-B186) -> 0.7 | E186: = A
K187: S > L | M187: S > L
D188: K = L/A | J188: S = | K188: =(1079/D186)+(D180/2) -> 1841.428571 | L188: S = | M188: =(665/D186)+(D180/2) -> 1250
A190: VERTICAL CURVE | D190: 12
A191: SAG | C191: VPI = | D191: 17950 | I191: Design Speed = | J191: 60 | K191: mph
D193: Length of | G193: Rate of | K193: FDM 11-10-5, Attachment 5.6, Category 1
B194: VPC | C194: VPT | D194: Vertical | G194: Curvature | L194: "K" Value | N194: "K" Value
B195: Station | C195: Station | D195: Curve (ft) | G195: (sag) | K195: Minimum | M195: Desirable
B196: 17750 | C196: 18150 | D196: =IF(OR(B196="",C196=""),"",ABS(C196-B196)) -> 400 | E196: = L | G196: K | K196: SSD (ft) | L196: 136 | M196: SSD (ft) | N196: 136
G197: =D196/D202 -> 363.6363636 | J197: Sight Distance (S) = | K197: 570 | M197: 570
D198: Algebraic
D199: Difference
B200: Grade1 | C200: Grade2 | D200: in Grades | H200: For a given "A" and 'L". What is "S" for this curve?
B201: (%) | C201: (%) | D201: (g2-g1)
B202: 0.3 | C202: 1.4 | D202: =ABS(C202-B202) -> 1.1 | E202: = A
K203: S > L | M203: S < L
D204: K = L/A
B205: When "A" is 1.75% or less, S is not restricted for a "SAG" vertical curve | J205: S = | K205: =(D202*D196+400)/(2*D202-3.5) -> -646.1538462 | L205: S = | M205: =(3.5*D196+SQRT(12.25*D196^2+(1600*D202*D196)))/(2*D202) -> 1378.262028
A207: VERTICAL CURVE | D207: 13
A208: CREST | C208: VPI = | D208: 19190 | I208: Design Speed = | J208: 60 | K208: mph
D210: Length of | G210: Rate of
B211: VPC | C211: VPT | D211: Vertical | G211: Curvature | L211: FDM 11-10-5, Attachment 5.4, Category 1
B212: Station | C212: Station | D212: Curve (ft) | G212: (crest) | K212: 24" Object Height | L212: "K" Value | M212: 6" Object Height | N212: "K" Value | O212: Min. L=3V
B213: 18690 | C213: 19690 | D213: =IF(OR(B213="",C213=""),"",ABS(C213-B213)) -> 1000 | E213: = L | G213: K | K213: Minimum | L213: 151 | M213: Desirable Minimum | N213: 245 | O213: =J208*3 -> 180
G214: =D213/D219 -> 285.7142857 | J214: Sight Distance (S) = | K214: 570 | M214: 570 | O214: YES
D215: Algebraic | H215: For a given "A" and 'L". What is "S" for this curve?
D216: Difference
B217: Grade 1 | C217: Grade2 | D217: in Grades | K217: S < L | M217: S < L
B218: (%) | C218: (%) | D218: (g2-g1) | J218: S = | K218: =(SQRT(G214))*46.45 -> 785.1483026 | L218: S = | M218: =(SQRT(G214))*36.46 -> 616.2864825
B219: 1.4 | C219: -2.1 | D219: =ABS(C219-B219) -> 3.5 | E219: = A
K220: S > L | M220: S > L
D221: K = L/A | J221: S = | K221: =(1079/D219)+(D213/2) -> 808.2857143 | L221: S = | M221: =(665/D219)+(D213/2) -> 690
A223: VERTICAL CURVE | D223: 14
A224: SAG | C224: VPI = | D224: 20550 | I224: Design Speed = | J224: 60 | K224: mph
D226: Length of | G226: Rate of | K226: FDM 11-10-5, Attachment 5.6, Category 1
B227: VPC | C227: VPT | D227: Vertical | G227: Curvature | L227: "K" Value | N227: "K" Value
B228: Station | C228: Station | D228: Curve (ft) | G228: (sag) | K228: Minimum | M228: Desirable
B229: 20350 | C229: 20750 | D229: =IF(OR(B229="",C229=""),"",ABS(C229-B229)) -> 400 | E229: = L | G229: K | K229: SSD (ft) | L229: 136 | M229: SSD (ft) | N229: 136
G230: =D229/D235 -> 307.6923077 | J230: Sight Distance (S) = | K230: 570 | M230: 570
D231: Algebraic
D232: Difference
B233: Grade1 | C233: Grade2 | D233: in Grades | H233: For a given "A" and 'L". What is "S" for this curve?
... 152 more rows
